bitfinex/quotes_ETHUSD_20250827
["timestamp","ask_amount","ask_price","bid_price","bid_amount"]
[1756336431534,0.4491,4534.5,4534.1,2.20550377]
[1756336431842,0.3161,4534.2,4534.0,2.20553512]
[1756336432078,3.737,4534.1,4534.0,2.99753512]
[1756336432238,3.737,4534.1,4534.0,0.792]
[1756336432424,4.0531,4534.1,4534.0,0.792]
[1756336432840,3.737,4534.1,4534.0,2.997558]
[1756336433129,3.737,4534.1,4534.0,0.792]
[1756336433535,4.0531,4534.1,4534.0,0.792]
[1756336433747,3.737,4534.1,4534.0,2.997558]
[1756336433942,0.5595,4534.4,4534.0,2.997558]
[1756336434147,3.737,4534.3,4534.0,1.081]
[1756336435028,3.737,4534.3,4534.2,2.20546072]
[1756336435230,3.737,4534.3,4534.2,2.49446072]
[1756336435557,0.1104,4534.4,4534.2,2.49446072]
[1756336435729,3.737,4534.3,4534.2,2.49446072]
[1756336436058,3.737,4534.3,4534.2,0.289]
[1756336439340,3.737,4534.3,4534.2,2.49446072]
[1756336439558,3.737,4534.3,4534.2,0.289]
[1756336439945,3.737,4534.3,4534.2,2.49446072]
[1756336440260,3.737,4534.3,4534.2,0.289]
[1756336440855,3.737,4534.3,4534.0,0.792]
[1756336441060,3.737,4534.3,4534.1,2.20550936]
[1756336442359,3.737,4534.3,4534.0,0.792]
[1756336442677,3.737,4534.3,4534.0,2.99755644]
[1756336443672,3.737,4534.3,4534.2,2.20546072]
[1756336444266,3.737,4534.3,4534.1,2.2055044]
[1756336444472,3.737,4534.3,4534.2,0.289]
[1756336445131,3.737,4534.3,4533.9,0.792]
[1756336445337,3.737,4534.3,4533.9,2.99760581]
[1756336445750,4.1861,4534.3,4533.9,2.99760581]
[1756336446371,4.1861,4534.3,4534.0,2.20555622]
[1756336446538,4.1861,4534.3,4533.9,2.99759677]
[1756336447091,4.1861,4534.3,4534.0,2.20554388]
[1756336447272,4.1861,4534.3,4533.9,0.792]
[1756336447576,3.737,4534.3,4533.9,0.792]
[1756336447876,0.4491,4534.2,4533.9,2.99757073]
[1756336448085,0.4491,4534.2,4533.9,0.792]
[1756336448442,0.4491,4534.2,4533.9,2.99756502]
[1756336450368,3.735,4534.1,4533.9,2.99756502]
[1756336450753,0.1104,4534.4,4533.9,2.99756502]
[1756336450960,3.735,4534.3,4533.9,2.99756502]
[1756336451160,4.1841,4534.3,4533.8,0.13932232]
[1756336451361,0.1104,4533.9,4533.8,0.024]
[1756336451561,3.8454,4533.9,4533.8,0.13932999]
[1756336451766,4.6106,4533.9,4533.8,0.13932999]
[1756336452287,4.1615,4533.9,4533.8,0.13932999]
[1756336455305,4.6106,4533.9,4533.8,0.13932999]
[1756336457374,0.8756,4533.9,4533.8,0.13932999]
[1756336457558,4.6096,4533.9,4533.8,0.13932999]
[1756336458181,0.8756,4533.9,4533.8,0.13932999]
[1756336458374,4.6096,4533.9,4533.8,0.024]
[1756336460287,4.6096,4533.9,4533.8,1.1143]
[1756336460288,0.1104,4533.9,4533.8,1.1143]
[1756336460474,3.0,4534.6,4533.8,1.6621]
[1756336460475,3.734,4534.4,4533.8,1.6621]
[1756336460662,3.734,4534.4,4533.9,2.20558941]
[1756336460860,3.734,4534.4,4534.3,1.0903]
[1756336461361,3.734,4534.4,4533.8,0.024]
[1756336461362,4.5052,4534.4,4533.8,0.024]
[1756336461689,0.1104,4534.1,4533.8,0.024]
[1756336461891,3.734,4534.0,4533.8,0.024]
[1756336462187,3.734,4534.0,4533.9,1.0903]
[1756336462571,3.734,4534.0,4533.9,3.29590665]
[1756336462771,3.734,4534.0,4533.9,1.0903]
[1756336463394,3.734,4534.0,4533.9,0.792]
[1756336464694,3.734,4534.0,4533.9,3.29590665]
[1756336465591,0.1104,4534.1,4533.9,3.29590665]
[1756336465592,0.1104,4534.1,4534.0,0.792]
[1756336465793,3.8444,4534.1,4534.0,0.792]
[1756336465998,3.734,4534.1,4534.0,1.0903]
[1756336470182,0.1104,4534.3,4534.0,1.0903]
[1756336470488,3.733,4534.2,4534.0,1.0903]
[1756336471486,0.7712,4534.1,4533.9,0.792]
[1756336471690,0.459,4534.0,4533.8,0.816]
[1756336471892,3.733,4533.9,4533.8,0.816]
[1756336472086,4.5042,4533.9,4533.8,0.024]
[1756336472492,4.5042,4533.9,4533.8,0.816]
[1756336472688,0.1104,4534.0,4533.8,1.1143]
[1756336472902,3.733,4533.9,4533.8,3.31994179]
[1756336473101,0.1104,4534.0,4533.8,3.31994179]
[1756336473413,0.1104,4534.3,4534.0,0.792]
[1756336473702,3.732,4534.2,4534.0,0.792]
[1756336473882,3.732,4534.2,4534.1,1.0903]
[1756336474385,3.732,4534.2,4534.1,0.792]
[1756336474774,0.1104,4534.3,4534.2,0.792]
[1756336474974,3.8424,4534.3,4533.8,2.22964986]
[1756336475795,3.8424,4534.3,4533.9,0.792]
[1756336476195,4.3014,4534.3,4533.9,0.792]
[1756336476999,0.459,4534.2,4533.9,0.792]
[1756336477572,0.3122,4534.0,4533.8,0.816]
[1756336477874,4.191,4533.9,4533.8,0.816]
[1756336478101,4.5032,4533.9,4533.8,0.816]
[1756336478405,4.5032,4533.9,4533.8,0.024]
[1756336479310,9.70880665,4533.9,4533.8,0.024]
[1756336482898,9.99169005,4533.9,4533.8,0.024]
[1756336484626,9.70880665,4533.9,4533.8,0.024]
[1756336488203,9.79726165,4533.9,4533.8,0.024]
[1756336489501,6.06526165,4533.9,4533.8,0.024]
[1756336489710,9.79626165,4533.9,4533.8,0.024]
[1756336492702,5.71666165,4533.9,4533.8,0.024]
[1756336492910,6.91766165,4533.9,4533.8,0.024]
[1756336493217,9.91766165,4533.9,4533.8,0.024]
[1756336494223,17.06766165,4533.9,4533.8,0.024]
[1756336494528,13.33666165,4533.9,4533.8,0.024]
[1756336494829,22.79896208,4533.9,4533.8,0.024]
[1756336495019,19.06796208,4533.9,4533.8,0.024]
[1756336495212,22.79896208,4533.9,4533.8,0.024]
[1756336496624,2.20580125,4533.5,4533.4,0.004]
[1756336496923,17.89420125,4533.5,4533.4,0.004]
[1756336497132,18.66250125,4533.5,4533.4,0.004]
[1756336497427,18.75095625,4533.5,4533.4,0.004]
[1756336500430,19.09620693,4533.5,4533.4,0.004]
[1756336500596,14.59690693,4533.5,4533.4,0.004]
[1756336500798,5.5374,4533.5,4533.4,1.5504]
[1756336501106,8.5374,4533.5,4533.4,1.5504]
[1756336501893,10.74320125,4533.5,4533.4,0.796]
[1756336502421,11.04150125,4533.5,4533.4,0.004]
[1756336502826,11.51150125,4533.5,4533.4,0.004]
[1756336503400,11.38674473,4533.5,4533.4,0.004]
[1756336504826,8.77224348,4533.5,4533.4,0.3041]
[1756336505049,8.5374,4533.5,4533.4,0.7584]
[1756336505414,4.8074,4533.5,4533.4,0.7584]
[1756336505621,8.5374,4533.5,4533.4,0.7584]
[1756336505925,8.5374,4533.5,4533.4,0.3041]
[1756336506935,11.04150125,4533.5,4533.4,0.004]
[1756336507159,11.51150125,4533.5,4533.4,0.004]
[1756336507311,11.70496025,4533.5,4533.4,0.004]
[1756336508030,8.5374,4533.5,4533.4,0.7584]
[1756336508948,8.74413236,4533.5,4533.4,0.7584]
[1756336510616,10.94993361,4533.5,4533.4,0.3041]
[1756336511053,10.94993361,4533.5,4533.3,0.004]
[1756336511054,5.20584991,4533.4,4533.3,0.004]
[1756336511253,2.20609322,4532.9,4532.8,0.024]
[1756336511438,15.17142601,4532.9,4532.8,0.024]
[1756336511745,15.64142601,4532.9,4532.8,0.024]
[1756336512356,23.13674549,4532.9,4532.8,0.024]
[1756336512650,17.59898206,4532.9,4532.8,0.024]
[1756336513244,18.06898206,4532.9,4532.8,0.024]
[1756336513447,17.59898206,4532.9,4532.8,0.024]
[1756336514160,18.06898206,4532.9,4532.8,0.024]
[1756336515128,2.20658002,4531.9,4531.8,0.02]
[1756336515442,10.84031238,4531.9,4531.8,0.02]
[1756336515756,11.60846527,4531.9,4531.8,0.02]
[1756336515957,12.06276527,4531.9,4531.8,0.02]
[1756336516168,7.86276527,4531.9,4531.8,0.02]
[1756336516324,11.29445575,4531.9,4531.8,0.3201]
[1756336516655,11.29440315,4531.9,4531.8,0.3201]
[1756336516857,11.29440315,4531.9,4531.8,0.3241]
[1756336517324,9.08782313,4531.9,4531.8,0.3288]
[1756336517526,11.29440315,4531.9,4531.8,0.3288]
[1756336517758,11.29440315,4531.9,4531.8,0.024]
[1756336518543,9.08782313,4531.9,4531.8,0.3288]
[1756336519762,7.56440315,4531.9,4531.8,0.3288]
[1756336519942,11.29440315,4531.9,4531.8,0.3288]
[1756336521041,17.90010358,4531.9,4531.8,0.024]
[1756336521952,25.05010358,4531.9,4531.8,0.024]
[1756336524335,27.37210358,4531.9,4531.8,0.024]
[1756336524531,25.05010358,4531.9,4531.8,0.024]
[1756336525972,25.0497502,4531.9,4531.8,0.024]
[1756336526580,2.20706702,4530.9,4530.8,0.02]
[1756336526748,16.36536745,4530.9,4530.8,0.02]
[1756336526950,16.87473477,4530.9,4530.8,0.02]
[1756336527395,16.99001477,4530.9,4530.8,0.02]
[1756336527550,17.45081477,4530.9,4530.8,0.02]
[1756336527750,16.99001477,4530.9,4530.8,0.02]
[1756336528579,16.98986378,4530.9,4530.8,0.02]
[1756336528878,13.25986378,4530.9,4530.8,0.02]
[1756336529096,17.45066378,4530.9,4530.8,0.02]
[1756336529849,16.98986378,4530.9,4530.8,0.02]
[1756336530054,17.45066378,4530.9,4530.8,0.02]
[1756336530481,16.98986378,4530.9,4530.8,0.02]
[1756336530689,17.33531155,4530.9,4530.8,0.02]
[1756336532672,17.79611155,4530.9,4530.8,0.02]
[1756336533360,17.79611155,4530.9,4530.8,0.024]
[1756336534157,2.20723932,4530.6,4530.3,0.004]
[1756336534483,10.93861104,4530.4,4530.3,0.004]
[1756336534702,10.93861104,4530.4,4529.8,0.024]
[1756336534703,2.20755425,4529.9,4529.8,0.024]
[1756336534887,16.57287101,4529.9,4529.8,0.024]
[1756336535094,17.33687101,4529.9,4529.8,0.024]
[1756336535256,17.68241927,4529.9,4529.8,0.024]
[1756336535994,17.68341927,4529.9,4529.8,0.024]
[1756336536492,17.68322933,4529.9,4529.8,0.024]
[1756336537060,17.79362933,4529.9,4529.8,0.024]
[1756336537260,17.44808107,4529.9,4529.8,0.024]
[1756336537682,3.0,4529.8,4528.8,0.02]
[1756336537874,0.1104,4528.9,4528.8,0.02]
[1756336538067,11.05064168,4528.9,4528.8,0.02]
[1756336538778,11.51144168,4528.9,4528.8,0.02]
[1756336539179,11.95854168,4528.9,4528.8,0.02]
[1756336540576,12.30416413,4528.9,4528.8,0.02]
[1756336540961,8.68476823,4528.9,4528.8,0.02]
[1756336541162,12.41576823,4528.9,4528.8,0.02]
[1756336541359,12.30416413,4528.9,4528.8,0.02]
[1756336542166,12.41284867,4528.9,4528.8,0.02]
[1756336542763,3.0,4528.8,4527.8,0.02]
[1756336542995,10.20480699,4528.9,4527.8,0.02]
[1756336542996,5.31892934,4527.9,4527.8,0.02]
[1756336543182,10.74792934,4527.9,4527.8,0.02]
[1756336543383,10.74792934,4527.9,4527.8,0.3248]
[1756336543583,1.698,4527.9,4527.8,0.7719]
[1756336543893,8.5404,4527.9,4527.8,0.7719]
[1756336544471,4.8084,4527.9,4527.8,0.7719]
[1756336544666,8.5404,4527.9,4527.8,0.7719]
[1756336545090,8.5404,4527.9,4527.8,0.7219]
[1756336545782,4.8084,4527.9,4527.8,0.7219]
[1756336545982,8.5404,4527.9,4527.8,0.7219]
[1756336550584,5.2085817,4527.8,4526.9,0.4506]
[1756336550784,3.732,4527.7,4526.9,0.4506]
[1756336551091,10.15,4527.8,4527.7,0.3063]
[1756336551302,16.09257811,4527.8,4527.7,0.3063]
[1756336551504,12.46897811,4527.8,4527.7,0.3063]
[1756336551698,16.20297811,4527.8,4527.7,0.3063]
[1756336552012,16.20297811,4527.8,4527.1,0.4506]
[1756336552013,2.20862689,4527.7,4527.1,0.4506]
[1756336552229,2.20876566,4527.5,4527.3,0.004]
[1756336552416,10.15,4527.8,4527.3,0.004]
[1756336552417,5.94277324,4527.4,4527.3,0.004]
[1756336552584,6.05317324,4527.4,4527.3,0.004]
[1756336552784,6.05317324,4527.4,4527.3,0.3103]
[1756336554489,0.1104,4527.4,4527.3,0.3103]
[1756336554691,0.1104,4527.4,4527.3,1.5529]
[1756336554906,7.2604,4527.8,4527.4,0.792]
[1756336555096,7.2604,4527.8,4527.7,0.3063]
[1756336555297,7.2604,4527.8,4527.7,0.7569]
[1756336555481,7.2604,4527.8,4527.7,0.3063]
[1756336555682,10.9934,4527.8,4527.7,0.3063]
[1756336556806,3.8434,4527.8,4527.7,0.3063]
[1756336557003,3.8434,4527.8,4527.7,0.7569]
[1756336557732,3.8434,4527.8,4527.7,0.3063]
[1756336558093,2.20875666,4527.5,4527.3,0.004]
[1756336558294,3.8434,4527.4,4527.3,0.004]
[1756336558701,0.1104,4527.4,4527.3,0.3103]
[1756336559221,3.8434,4527.4,4527.3,0.7609]
[1756336559521,3.8434,4527.4,4527.3,0.3103]
[1756336559724,3.8434,4527.4,4527.3,0.7609]
[1756336560426,3.8434,4527.4,4527.3,0.3103]
[1756336560614,1.698,4527.9,4527.4,3.00076914]
[1756336560812,0.1104,4528.2,4527.9,0.792]
[1756336561013,1.699,4528.6,4528.1,1.0983]
[1756336561213,0.1104,4528.3,4528.1,1.0983]
[1756336561417,3.736,4528.2,4528.1,1.0983]
[1756336562495,0.1104,4528.3,4528.2,3.00038302]
[1756336562830,2.059,4529.1,4529.0,0.792]
[1756336563128,2.059,4529.1,4529.0,3.75689293]
[1756336563427,2.059,4529.1,4529.0,1.5489]
[1756336564141,3.738,4529.1,4529.0,1.5489]
[1756336564339,3.738,4529.1,4529.0,3.75689293]
[1756336564541,1.699,4529.3,4529.0,1.5489]
[1756336564722,3.738,4529.2,4529.1,3.4505392]
[1756336565048,3.738,4529.2,4529.1,3.7568392]
[1756336565342,3.738,4529.2,4529.1,1.5489]
[1756336565544,1.699,4529.3,4529.2,0.792]
[1756336565739,0.02,4529.8,4529.7,2.99965172]
[1756336565939,3.757,4529.8,4529.7,1.0983]
[1756336566513,3.757,4529.8,4529.7,3.30595172]
[1756336566714,0.02,4529.8,4529.7,3.75655172]
[1756336568368,0.021,4531.8,4530.7,2.99916445]
[1756336568715,0.021,4531.8,4530.7,3.77813609]
[1756336569026,0.021,4531.8,4530.7,3.75606445]
[1756336570215,0.021,4531.8,4530.7,3.77813609]
[1756336570414,0.021,4531.8,4530.7,3.75606445]
[1756336571315,0.021,4531.8,4531.7,2.9986774]
[1756336571819,0.021,4531.8,4531.7,3.77764417]
[1756336572555,1e-08,4531.8,4531.7,6.77764417]
[1756336572868,0.02,4532.8,4531.7,6.8659774]
[1756336573011,0.02,4532.8,4532.7,5.99819057]
[1756336573209,0.02,4532.8,4532.7,9.85159057]
[1756336573414,0.02,4532.8,4532.7,10.60849057]
[1756336575320,1e-08,4532.8,4532.7,10.60849057]
[1756336576056,0.041,4533.8,4532.7,10.60849057]
[1756336576057,0.041,4533.8,4533.0,0.792]
[1756336576267,0.041,4533.8,4533.7,3.10810395]
[1756336576432,0.041,4533.8,4533.7,11.85340395]
[1756336576769,0.041,4533.8,4533.7,12.30400395]
[1756336581770,0.041,4533.8,4533.7,11.84840395]
[1756336583063,0.041,4533.8,4533.7,12.27850395]
[1756336583462,0.041,4533.8,4533.7,11.84840395]
[1756336583662,0.041,4533.8,4533.7,7.75010395]
[1756336583839,0.8039,4533.8,4533.7,8.54210395]
[1756336584042,0.041,4533.8,4533.7,8.84470395]
[1756336585089,0.041,4533.8,4533.7,9.27480395]
[1756336590493,0.041,4533.8,4533.7,8.84470395]
[1756336590684,0.041,4533.8,4533.7,9.27480395]
[1756336590884,0.041,4533.8,4533.7,8.84470395]
[1756336591597,0.041,4533.8,4533.7,12.27480395]
[1756336594170,1e-08,4533.8,4533.7,11.84470395]
[1756336594370,0.001,4534.8,4534.7,2.99721754]
[1756336594569,0.001,4534.8,4534.7,11.42521754]
[1756336594790,0.001,4534.8,4534.7,11.83821754]
[1756336596796,0.001,4535.4,4534.8,3.792]
[1756336597014,0.001,4535.4,4535.2,6.10737442]
[1756336597316,0.001,4535.4,4535.2,10.14097442]
[1756336599405,0.001,4535.4,4535.2,10.57107442]
[1756336599609,0.02,4536.8,4535.3,3.0]
[1756336599811,1e-08,4536.4,4536.0,3.792]
[1756336600112,1e-08,4536.4,4536.3,6.40943974]
[1756336600311,1e-08,4536.4,4536.3,10.14743974]
[1756336600483,1e-08,4536.8,4536.7,5.99624537]
[1756336600686,1e-08,4536.8,4536.7,9.84464537]
[1756336600879,1e-08,4536.8,4536.7,10.14724537]
[1756336601090,0.76290001,4536.8,4536.7,6.10664537]
[1756336601423,0.76290001,4536.8,4536.6,3.738]
[1756336601717,0.4562,4536.7,4536.6,3.792]
[1756336601925,0.7629,4536.7,4536.6,0.792]
[1756336602221,0.7629,4536.7,4536.5,0.1104]
[1756336602431,0.4562,4536.6,4536.5,0.1104]
[1756336602729,0.4562,4536.6,4536.5,6.05474255]
[1756336603021,0.7629,4536.6,4536.5,6.05474255]
[1756336604005,0.7629,4536.6,4536.5,6.84674255]
[1756336604214,0.7629,4536.6,4536.5,0.9024]
[1756336605928,1e-08,4536.8,4536.7,2.20424537]
[1756336606233,1e-08,4536.8,4536.7,5.94124537]
[1756336606402,0.30670001,4536.8,4536.7,5.94124537]
[1756336606734,0.30670001,4536.8,4536.7,6.73324537]
[1756336606922,0.76390001,4536.8,4536.7,6.73324537]
[1756336608348,0.76390001,4536.8,4536.5,0.1104]
[1756336608658,0.76390001,4536.8,4536.1,2.20449998]
[1756336608827,0.30670001,4536.8,4536.3,2.20443974]
[1756336609009,0.4572,4536.7,4536.2,3.738]
[1756336609204,0.4572,4536.6,4536.3,0.792]
[1756336609405,0.2977,4536.4,4536.3,0.792]
[1756336609638,0.7549,4536.4,4536.3,0.792]
[1756336610054,1e-08,4536.8,4536.7,2.20424537]
[1756336610258,1e-08,4536.8,4536.7,5.94124537]
[1756336610559,0.75490001,4536.8,4536.7,5.94124537]
[1756336611636,0.75490001,4536.8,4536.7,6.73324537]
[1756336614047,0.75490001,4536.8,4536.2,3.744]
[1756336614257,0.75490001,4536.8,4535.5,3.0]
[1756336614258,0.4572,4536.7,4536.1,0.792]
[1756336614633,0.4572,4536.6,4536.3,0.792]
[1756336614926,0.2977,4536.4,4536.0,3.744]
[1756336615131,0.4572,4536.3,4535.9,2.20459511]
[1756336615333,0.4572,4536.2,4536.1,2.20449748]
[1756336615553,1e-08,4536.8,4536.2,0.792]
[1756336615875,1e-08,4536.8,4536.7,2.99624537]
[1756336616072,1e-08,4536.8,4536.7,6.74324537]
[1756336616229,0.75490001,4536.8,4536.7,6.74324537]
[1756336617171,0.29770001,4536.8,4536.7,6.74324537]
[1756336618472,0.29770001,4536.8,4536.7,4.539]
[1756336618632,0.75490001,4536.8,4536.7,0.792]
[1756336619041,0.75490001,4536.8,4536.7,2.99624537]
[1756336619765,0.75490001,4536.8,4534.3,0.4529]
[1756336619992,0.1104,4536.2,4535.5,2.31518432]
[1756336620159,0.2977,4535.6,4534.4,0.662861]
[1756336620358,0.4572,4535.5,4534.9,0.1104]
[1756336620560,0.2977,4535.0,4534.9,0.1104]
[1756336620797,0.2977,4535.0,4534.9,3.10752028]
[1756336621003,0.4572,4535.4,4535.1,2.20499549]
[1756336621189,1.695,4536.2,4535.3,0.2984]
[1756336621360,0.1104,4536.1,4535.8,2.20467725]
[1756336621562,0.2977,4535.9,4535.8,2.99667725]
[1756336621797,0.1104,4536.4,4536.1,0.792]
[1756336621984,0.4572,4536.3,4536.2,0.792]
[1756336622288,0.7549,4536.3,4536.2,0.792]
[1756336622497,0.7549,4536.3,4536.2,2.99648833]
[1756336622680,0.1104,4536.7,4536.6,2.20429396]
[1756336622868,1e-08,4536.8,4536.7,2.99624537]
[1756336623711,1e-08,4536.8,4536.7,6.74424537]
[1756336623871,1e-08,4536.8,4536.7,7.04264537]
[1756336624081,1e-08,4536.8,4536.7,8.84804537]
[1756336624284,1e-08,4536.8,4536.7,12.30094537]
[1756336624885,0.00100001,4536.8,4536.7,12.30094537]
[1756336625086,1e-08,4537.1,4537.0,2.99609962]
[1756336625289,1e-08,4537.1,4537.0,0.1104]
[1756336625507,0.29770001,4537.1,4537.0,0.1104]
[1756336625692,0.29770001,4537.1,4537.0,5.61289962]
[1756336625693,1e-08,4537.1,4537.0,5.61289962]
[1756336625895,0.29770001,4537.1,4537.0,5.31449962]
[1756336626098,2.20415326,4536.9,4536.5,0.004]
[1756336626407,0.1104,4536.6,4535.5,0.004]
[1756336626588,0.2977,4536.4,4535.5,0.004]
[1756336626775,2.20453693,4536.1,4535.5,0.004]
[1756336626976,2.20473731,4535.7,4535.5,0.004]
[1756336627171,0.4081,4535.6,4535.5,0.004]
[1756336627445,3.07007996,4535.6,4535.5,0.004]
[1756336627777,0.8653,4535.6,4535.5,0.004]
[1756336628097,3.07007996,4535.6,4535.5,0.004]
[1756336628794,3.27615132,4535.6,4535.5,0.004]
[1756336629213,6.83907996,4535.6,4535.5,0.004]
[1756336630277,6.83907996,4535.6,4533.8,0.02]
[1756336630278,3.0,4535.5,4533.8,0.02]
[1756336630477,0.1104,4534.3,4533.8,0.02]
[1756336630693,0.2977,4533.9,4533.8,0.02]
[1756336630988,0.1104,4534.3,4533.8,1.1104]
[1756336631205,0.1104,4534.6,4533.9,2.31596259]
[1756336631406,0.1104,4534.6,4534.1,0.792]
[1756336631824,0.1104,4534.6,4534.0,0.792]
[1756336632029,0.5676,4534.6,4534.0,0.792]
[1756336632399,0.5676,4534.6,4534.0,2.99753793]
[1756336632606,0.5676,4534.6,4534.1,2.20550936]
[1756336632830,0.5676,4534.6,4534.2,2.20545946]
[1756336633014,1.695,4534.9,4534.3,0.792]
[1756336633210,0.1104,4534.8,4534.3,0.792]
[1756336633632,0.4572,4534.7,4534.0,0.792]
[1756336634328,0.2977,4534.1,4533.8,0.02]
[1756336634529,2.77316998,4534.0,4533.8,0.02]
[1756336634842,0.5676,4534.0,4533.8,0.02]
[1756336635135,0.7549,4533.9,4533.8,0.02]
[1756336635641,2.96050665,4533.9,4533.8,0.02]
[1756336636135,4.65650665,4533.9,4533.8,0.02]
[1756336637705,2.5613,4533.9,4533.8,0.02]
[1756336637908,8.53690665,4533.9,4533.8,0.02]
[1756336638903,6.3313,4533.9,4533.8,0.02]
[1756336639237,8.53590665,4533.9,4533.8,0.02]
[1756336639614,2.1041,4533.9,4533.8,0.02]
[1756336639979,1.8064,4533.9,4533.8,0.02]
[1756336640446,2.1151,4533.9,4533.8,0.02]
[1756336642943,2.1151,4533.9,4533.8,0.024]
[1756336644249,2.5611,4533.9,4533.8,0.024]
[1756336644466,2.5611,4533.9,4532.4,0.02606336]
[1756336644467,6.19671775,4533.9,4532.4,0.02606336]
[1756336644643,2.20653133,4532.0,4531.9,0.004]
[1756336644846,5.20658002,4531.9,4529.8,2.22759726]
[1756336645033,6.5057273,4531.9,4529.8,0.02]
[1756336645372,2.20667747,4531.7,4530.6,2.20716454]
[1756336645516,6.0557556,4531.6,4530.6,0.4609]
[1756336645919,6.05573048,4531.6,4530.6,0.4609]
[1756336646252,3.849,4531.6,4530.7,0.792]
[1756336646441,6.05574596,4531.6,4530.7,2.20716093]
[1756336646755,6.05572867,4531.6,4530.7,0.792]
[1756336646957,2.20677629,4531.5,4530.6,2.66807186]
[1756336647163,6.05573312,4531.6,4530.7,2.20715532]
[1756336647732,0.663588,4531.5,4530.7,2.20715532]
[1756336648233,1.696,4532.0,4531.0,0.792]
[1756336648545,5.543,4532.0,4531.5,0.2878]
[1756336649765,1.696,4532.0,4531.5,0.2878]
[1756336650068,5.542,4532.0,4531.7,2.20665681]
[1756336650437,5.542,4532.0,4531.6,0.792]
[1756336650649,1.696,4532.0,4531.9,0.2878]
[1756336650960,5.541,4532.0,4531.9,0.2878]
[1756336651167,5.541,4532.0,4531.7,0.792]
[1756336651365,5.541,4532.0,4530.8,0.812]
[1756336651366,0.3087,4531.8,4530.8,0.812]
[1756336651541,0.3087,4531.8,4531.4,0.792]
[1756336652065,0.3087,4531.8,4531.5,0.792]
[1756336652265,5.541,4532.0,4531.5,0.792]
[1756336652432,5.541,4532.0,4531.2,0.792]
[1756336652635,5.539,4532.0,4531.9,0.2878]
[1756336652848,2.5515587,4532.6,4531.9,0.2878]
[1756336653052,3.843,4532.5,4531.9,2.49436658]
[1756336653561,0.34531888,4532.6,4532.0,0.792]
[1756336653768,3.842,4532.5,4532.0,0.792]
[1756336653936,3.842,4532.5,4531.9,0.792]
[1756336654871,3.842,4532.5,4531.9,0.9024]
[1756336655366,0.20530386,4532.4,4532.1,0.792]
[1756336655766,0.20530386,4532.4,4532.0,0.792]
[1756336656431,0.20530386,4532.3,4532.0,0.792]
[1756336656638,0.20530386,4532.2,4532.0,0.792]
[1756336656946,0.20530386,4532.1,4532.0,0.792]
[1756336657262,0.20530386,4532.4,4532.0,0.792]
[1756336657448,0.20530386,4532.4,4531.1,3.0]
[1756336657449,0.3087,4532.1,4531.1,3.0]
[1756336657765,4.04130386,4532.0,4531.5,0.792]
[1756336657965,0.3087,4531.6,4531.5,0.792]
[1756336658169,0.1104,4532.1,4531.5,0.792]
[1756336658336,4.0426064,4532.0,4531.5,0.792]
[1756336658537,0.20560636,4531.9,4531.5,0.792]
[1756336658737,0.20560636,4531.8,4531.5,0.792]
[1756336658934,4.04060636,4531.7,4531.5,0.792]
[1756336659137,3.835,4531.7,4531.5,0.792]
[1756336659383,0.2056131,4531.6,4531.5,0.792]
[1756336659737,0.2056131,4531.6,4531.4,0.1104]
[1756336659938,0.5143131,4531.5,4531.4,0.9024]
[1756336660337,0.5143131,4531.5,4531.4,0.1104]
[1756336660666,3.16708789,4531.5,4530.8,0.02]
[1756336660868,0.1104,4531.3,4530.8,2.22710146]
[1756336661066,0.2056131,4531.2,4531.1,0.004]
[1756336661237,0.2056131,4531.2,4531.1,2.21096961]
[1756336661435,0.2056131,4531.2,4531.1,3.75166961]
[1756336661640,3.663,4532.3,4531.2,0.792]
[1756336661963,0.7621599,4532.2,4531.6,0.792]
[1756336662143,0.2057599,4532.1,4531.8,2.20662798]
[1756336662487,1.697,4532.7,4531.9,1.2529]
[1756336662488,0.2057599,4532.0,4531.9,1.2529]
[1756336662662,3.9454,4532.5,4532.0,2.99849207]
[1756336662865,0.20581501,4532.4,4532.0,2.99849207]
[1756336663343,0.20581501,4532.3,4532.0,0.792]
[1756336663545,0.20581501,4532.2,4532.0,0.792]
[1756336663748,0.1104,4532.5,4532.1,0.2878]
[1756336663948,0.20590647,4532.4,4532.1,0.2878]
[1756336664148,0.20590647,4532.3,4532.1,0.2878]
[1756336664468,0.20590647,4532.2,4532.1,0.2878]
[1756336664774,0.446,4534.2,4532.6,0.792]
[1756336665002,0.1104,4533.6,4533.2,0.792]
[1756336665145,0.20593987,4533.5,4533.2,0.792]
[1756336665343,0.20593987,4533.4,4533.3,2.20589857]
[1756336665543,0.20593987,4533.4,4533.2,0.792]
[1756336665770,0.20593987,4533.3,4533.2,0.792]
[1756336665969,0.20593987,4533.5,4533.2,1.0798]
[1756336666172,0.20593987,4533.4,4533.2,1.0798]
[1756336666364,0.1104,4533.6,4533.2,3.28573516]
[1756336666565,0.2059429,4533.5,4533.2,1.0798]
[1756336666980,0.2059429,4533.5,4533.2,3.28574534]
[1756336667166,0.2059429,4533.5,4533.3,2.20588656]
[1756336667370,0.1104,4533.6,4533.3,2.20588656]
[1756336667550,0.3163429,4533.6,4533.3,2.20588656]
[1756336667753,0.2059429,4533.5,4533.2,0.792]
[1756336667948,0.2059429,4533.4,4533.2,2.99794345]
[1756336668146,0.1104,4533.6,4533.2,2.99794345]